bitfinex/quotes_BTCUSD_20240911
["timestamp","ask_amount","ask_price","bid_price","bid_amount"]
[1726040137894,2.75771877,56728.0,56727.0,0.0024739]
[1726040138310,2.75766339,56728.0,56727.0,0.0024739]
[1726040138459,2.74366112,56728.0,56727.0,0.0024739]
[1726040138874,2.75766112,56728.0,56727.0,0.0024739]
[1726040139299,2.5651929,56728.0,56727.0,0.0024739]
[1726040139497,2.5511929,56728.0,56727.0,0.0024739]
[1726040139759,2.5791929,56728.0,56727.0,0.0024739]
[1726040139959,2.5515695,56728.0,56727.0,0.0024739]
[1726040140258,2.9041285,56728.0,56727.0,0.0024739]
[1726040140401,1.77155114,56722.0,56721.0,0.001634]
[1726040140630,2.12771128,56722.0,56721.0,0.001634]
[1726040142448,2.66600728,56722.0,56721.0,0.001634]
[1726040142649,2.35744444,56722.0,56721.0,0.001634]
[1726040143258,2.31341128,56722.0,56721.0,0.001634]
[1726040143452,2.50358083,56722.0,56721.0,0.001634]
[1726040143652,2.56161399,56722.0,56721.0,0.001634]
[1726040143925,2.54761399,56722.0,56721.0,0.001634]
[1726040144173,2.53361399,56722.0,56721.0,0.001634]
[1726040144436,2.56382345,56722.0,56721.0,0.001634]
[1726040145715,2.57782345,56722.0,56721.0,0.001634]
[1726040149350,2.73617123,56722.0,56721.0,0.001634]
[1726040150123,2.57782345,56722.0,56721.0,0.001634]
[1726040150577,2.73617123,56722.0,56721.0,0.001634]
[1726040150804,2.57782345,56722.0,56721.0,0.001634]
[1726040154059,2.57782345,56722.0,56721.0,0.062734]
[1726040155650,1.1888596,56722.0,56721.0,0.139234]
[1726040156078,1.66432474,56722.0,56721.0,0.139234]
[1726040156303,1.69194932,56722.0,56721.0,0.139234]
[1726040156729,1.72194932,56722.0,56721.0,0.139234]
[1726040156941,1.90711887,56722.0,56721.0,0.139234]
[1726040157152,2.00711887,56722.0,56721.0,0.139234]
[1726040157401,2.12666205,56722.0,56721.0,0.139234]
[1726040157635,2.10028171,56722.0,56721.0,0.139234]
[1726040157866,2.08828171,56722.0,56721.0,0.139234]
[1726040158086,2.00911887,56722.0,56721.0,0.139234]
[1726040158315,2.06065757,56722.0,56721.0,0.139234]
[1726040158791,1.98149429,56722.0,56721.0,0.139234]
[1726040159029,2.06065757,56722.0,56721.0,0.139234]
[1726040159252,2.07465757,56722.0,56721.0,0.139234]
[1726040161073,2.07466821,56722.0,56721.0,0.139234]
[1726040161523,1.99549429,56722.0,56721.0,0.139234]
[1726040161955,1.63799994,56722.0,56721.0,0.139234]
[1726040162161,1.72008126,56722.0,56721.0,0.139234]
[1726040162798,1.77285483,56722.0,56721.0,0.139234]
[1726040163011,1.7464914,56722.0,56721.0,0.139234]
[1726040163648,2.0990874,56722.0,56721.0,0.139234]
[1726040163864,1.99349429,56722.0,56721.0,0.139234]
[1726040164090,2.07269634,56722.0,56721.0,0.139234]
[1726040164310,2.02111898,56722.0,56721.0,0.139234]
[1726040164739,2.12671209,56722.0,56721.0,0.139234]
[1726040165429,2.02111898,56722.0,56721.0,0.139234]
[1726040166511,2.15315978,56722.0,56721.0,0.139234]
[1726040166894,2.15515978,56722.0,56721.0,0.139234]
[1726040167327,2.37571498,56722.0,56721.0,0.139234]
[1726040167818,2.02311898,56722.0,56721.0,0.139234]
[1726040168021,2.19927548,56722.0,56721.0,0.139234]
[1726040168251,2.02311898,56722.0,56721.0,0.139234]
[1726040168711,1.9146554,56722.0,56721.0,0.139234]
[1726040168935,2.15321503,56722.0,56721.0,0.139234]
[1726040169149,2.12679199,56722.0,56721.0,0.139234]
[1726040169356,2.02111898,56722.0,56721.0,0.139234]
[1726040169565,2.15321503,56722.0,56721.0,0.139234]
[1726040170724,2.15324145,56722.0,56721.0,0.139234]
[1726040173999,2.15327444,56722.0,56721.0,0.139234]
[1726040174209,1.80067844,56722.0,56721.0,0.139234]
[1726040174428,1.77305375,56722.0,56721.0,0.139234]
[1726040175272,1.64089829,56722.0,56721.0,0.139234]
[1726040176390,1.77309017,56722.0,56721.0,0.139234]
[1726040177305,1.64089829,56722.0,56721.0,0.139234]
[1726040183859,0.4073696,56722.0,56721.0,0.139234]
[1726040184070,0.71589093,56722.0,56721.0,0.139234]
[1726040184281,0.68943844,56722.0,56721.0,0.139234]
[1726040184518,0.3773696,56722.0,56721.0,0.139234]
[1726040184980,0.45669518,56722.0,56721.0,0.139234]
[1726040185212,0.59733848,56722.0,56721.0,0.139234]
[1726040185646,0.5180129,56722.0,56721.0,0.139234]
[1726040185856,0.59733104,56722.0,56721.0,0.139234]
[1726040186370,0.7243109,56722.0,56721.0,0.139234]
[1726040186598,0.8480346,56722.0,56721.0,0.139234]
[1726040186834,1.30909418,56722.0,56721.0,0.139234]
[1726040187326,1.22977604,56722.0,56721.0,0.139234]
[1726040188251,0.87718004,56722.0,56721.0,0.139234]
[1726040189402,1.22977604,56722.0,56721.0,0.139234]
[1726040189880,1.30909418,56722.0,56721.0,0.139234]
[1726040190823,1.30908511,56722.0,56721.0,0.139234]
[1726040192498,2.01427711,56722.0,56721.0,0.139234]
[1726040192721,2.06914983,56722.0,56721.0,0.062734]
[1726040192931,1.93696804,56722.0,56721.0,0.062734]
[1726040193204,1.93696804,56722.0,56721.0,0.001634]
[1726040194560,1.95996804,56722.0,56721.0,0.001634]
[1726040195674,1.98759311,56722.0,56721.0,0.001634]
[1726040196613,1.98559311,56722.0,56721.0,0.001634]
[1726040197053,1.98759311,56722.0,56721.0,0.001634]
[1726040197711,1.98559311,56722.0,56721.0,0.001634]
[1726040198580,1.95796804,56722.0,56721.0,0.001634]
[1726040199450,1.95996804,56722.0,56721.0,0.001634]
[1726040201441,2.11878117,56722.0,56721.0,0.001634]
[1726040201660,1.95996804,56722.0,56721.0,0.001634]
[1726040204259,1.98759372,56722.0,56721.0,0.001634]
[1726040206481,2.34018972,56722.0,56721.0,0.001634]
[1726040206906,2.40396957,56722.0,56721.0,0.001634]
[1726040207758,2.38426957,56722.0,56721.0,0.001634]
[1726040208195,2.34018972,56722.0,56721.0,0.001634]
[1726040208415,2.35988972,56722.0,56721.0,0.001634]
[1726040208840,2.34588972,56722.0,56721.0,0.001634]
[1726040209939,2.31826404,56722.0,56721.0,0.001634]
[1726040210397,2.30426404,56722.0,56721.0,0.001634]
[1726040210821,2.33226404,56722.0,56721.0,0.001634]
[1726040211026,2.31826404,56722.0,56721.0,0.001634]
[1726040211231,2.33226404,56722.0,56721.0,0.001634]
[1726040212582,2.37634389,56722.0,56721.0,0.001634]
[1726040214142,2.56997167,56722.0,56721.0,0.001634]
[1726040214366,2.64005284,56722.0,56721.0,0.067034]
[1726040214577,2.56997167,56722.0,56721.0,0.067034]
[1726040215001,2.74851587,56722.0,56721.0,0.001634]
[1726040218778,2.72088809,56722.0,56721.0,0.001634]
[1726040220826,2.54234389,56722.0,56721.0,0.001634]
[1726040221036,2.35664389,56722.0,56721.0,0.001634]
[1726040221870,2.31256404,56722.0,56721.0,0.001634]
[1726040222105,2.47119731,56722.0,56721.0,0.001634]
[1726040222315,2.51527716,56722.0,56721.0,0.001634]
[1726040222553,2.16268116,56722.0,56721.0,0.001634]
[1726040222796,1.95996804,56722.0,56721.0,0.067034]
[1726040223014,1.95796804,56722.0,56721.0,0.147234]
[1726040223719,1.46472874,56722.0,56721.0,0.147234]
[1726040223964,0.34046468,56722.0,56721.0,0.147234]
[1726040224195,0.26116014,56722.0,56721.0,0.147234]
[1726040224929,0.24716014,56722.0,56721.0,0.147234]
[1726040225155,0.40945814,56722.0,56721.0,0.147234]
[1726040225366,0.23316014,56722.0,56721.0,0.147234]
[1726040225575,0.27255884,56722.0,56721.0,0.147234]
[1726040226227,0.27855884,56722.0,56721.0,0.147234]
[1726040227114,0.24016014,56722.0,56721.0,0.147234]
[1726040227346,0.23416014,56722.0,56721.0,0.147234]
[1726040227555,0.17894018,56722.0,56721.0,0.147234]
[1726040227765,0.236165,56722.0,56721.0,0.147234]
[1726040228008,0.17894018,56722.0,56721.0,0.147234]
[1726040233968,0.003,56722.0,56721.0,0.147234]
[1726040234189,0.000817,56727.0,56722.0,0.1423]
[1726040234401,0.000817,56727.0,56724.0,0.1423]
[1726040234631,0.000817,56727.0,56726.0,0.0623]
[1726040234860,0.000817,56727.0,56726.0,0.1423]
[1726040236173,0.006817,56727.0,56726.0,0.15789444]
[1726040236383,0.013817,56727.0,56726.0,0.15789444]
[1726040236814,0.006817,56727.0,56726.0,0.15789444]
[1726040237740,0.001817,56727.0,56726.0,0.15989444]
[1726040238162,0.03443604,56727.0,56726.0,0.15989444]
[1726040238421,0.02943604,56727.0,56726.0,0.15989444]
[1726040239089,0.02943604,56727.0,56726.0,0.16089444]
[1726040239748,0.02943604,56727.0,56726.0,0.16289444]
[1726040240031,0.001817,56727.0,56726.0,0.16289444]
[1726040240244,0.002817,56727.0,56726.0,0.16289444]
[1726040240656,0.001817,56727.0,56726.0,0.16089444]
[1726040240866,0.000817,56727.0,56726.0,0.15789444]
[1726040241303,0.000817,56727.0,56726.0,0.16141939]
[1726040241304,0.003817,56727.0,56726.0,0.16141939]
[1726040241512,0.007817,56727.0,56726.0,0.16141939]
[1726040241717,0.004817,56727.0,56726.0,0.16141939]
[1726040241924,0.007817,56727.0,56726.0,0.16141939]
[1726040242365,0.000817,56727.0,56726.0,0.16141939]
[1726040242577,0.001817,56727.0,56726.0,0.16141939]
[1726040243036,0.005817,56727.0,56726.0,0.16141939]
[1726040243688,0.001817,56727.0,56726.0,0.16141939]
[1726040244359,0.003817,56727.0,56726.0,0.16141939]
[1726040245086,0.003817,56727.0,56726.0,0.26988297]
[1726040245544,0.003817,56727.0,56726.0,0.16141939]
[1726040246018,0.003817,56727.0,56726.0,0.15789444]
[1726040250112,0.00360481,56727.0,56726.0,0.15789444]
[1726040252411,0.00360481,56727.0,56726.0,0.16141922]
[1726040253148,0.00360481,56727.0,56726.0,0.16131922]
[1726040253337,0.00360481,56727.0,56726.0,0.16041922]
[1726040253834,0.00360481,56727.0,56726.0,0.34112751]
[1726040254066,0.00360481,56727.0,56726.0,0.15961922]
[1726040255041,0.00360481,56727.0,56726.0,0.15901922]
[1726040255307,0.00360481,56727.0,56726.0,0.15549444]
[1726040255548,0.00360481,56727.0,56726.0,0.15539444]
[1726040255788,0.00360481,56727.0,56726.0,0.15509444]
[1726040256029,0.00360481,56727.0,56726.0,0.15479444]
[1726040256492,0.00360481,56727.0,56726.0,0.15439444]
[1726040256962,0.00360481,56727.0,56726.0,0.15429444]
[1726040257185,0.00360481,56727.0,56726.0,0.15781941]
[1726040257417,0.00360481,56727.0,56726.0,0.15751941]
[1726040257877,0.00360481,56727.0,56726.0,0.15741941]
[1726040260051,0.00360481,56727.0,56726.0,0.15389444]
[1726040270151,0.00360481,56727.0,56726.0,0.1574194]
[1726040270861,0.00360481,56727.0,56726.0,0.15389444]
[1726040271593,0.00360481,56727.0,56726.0,0.15741936]
[1726040273287,0.00360481,56727.0,56726.0,0.15389444]
[1726040275666,0.00360481,56727.0,56726.0,0.15741935]
[1726040276402,0.00360481,56727.0,56726.0,0.15905335]
[1726040281823,0.00360481,56727.0,56726.0,0.15552844]
[1726040282090,0.06084217,56727.0,56726.0,0.01722844]
[1726040282307,0.06084217,56727.0,56726.0,0.001634]
[1726040282538,0.06084217,56727.0,56726.0,0.01722844]
[1726040282995,0.00360481,56727.0,56726.0,0.27437461]
[1726040283884,0.00360481,56727.0,56726.0,0.32705695]
[1726040284316,0.00360481,56727.0,56726.0,0.27437461]
[1726040284747,0.00160481,56727.0,56726.0,0.27437461]
[1726040284980,0.00160481,56727.0,56726.0,0.27637461]
[1726040285193,0.00160481,56727.0,56726.0,0.96908603]
[1726040285410,0.00160481,56727.0,56726.0,0.96901006]
[1726040285623,0.00160481,56727.0,56726.0,0.83938017]
[1726040285836,0.00260481,56727.0,56726.0,0.84138017]
[1726040287160,0.00060481,56727.0,56726.0,0.83738017]
[1726040287372,0.00160481,56727.0,56726.0,0.84738017]
[1726040287585,0.00260481,56727.0,56726.0,0.84938017]
[1726040287792,0.00160481,56727.0,56726.0,0.84738017]
[1726040288002,0.00060481,56727.0,56726.0,0.86738017]
[1726040288210,0.00260481,56727.0,56726.0,0.87938017]
[1726040288494,0.00160481,56727.0,56726.0,0.87738017]
[1726040288720,0.00160481,56727.0,56726.0,0.86938017]
[1726040289177,0.00025907,56727.0,56726.0,1.04119196]
[1726040289400,7e-08,56727.0,56726.0,0.77495937]
[1726040289595,7e-08,56727.0,56726.0,0.88338017]
[1726040291035,0.000817,56739.0,56738.0,0.16079444]
[1726040291241,0.000817,56739.0,56738.0,0.50123786]
[1726040291451,0.000817,56739.0,56738.0,0.50121442]
[1726040292321,0.001817,56739.0,56738.0,0.50821442]
[1726040292529,0.002817,56739.0,56738.0,0.45767948]
[1726040292753,0.001817,56739.0,56738.0,0.45567948]
[1726040293874,0.000817,56739.0,56738.0,0.44867948]
[1726040294094,0.001817,56739.0,56738.0,0.17479444]
[1726040294302,0.002817,56739.0,56738.0,0.30073898]
[1726040295692,0.002817,56739.0,56738.0,0.29721524]
[1726040296314,0.002817,56739.0,56738.0,0.3007391]
[1726040297399,0.002817,56739.0,56738.0,0.29721524]
[1726040301570,0.002817,56739.0,56738.0,0.04359444]
[1726040301886,0.002817,56739.0,56738.0,0.04711886]
[1726040302089,0.179062,56739.0,56738.0,0.04359444]
[1726040302460,0.001817,56739.0,56738.0,0.02959444]
[1726040302646,0.178062,56739.0,56738.0,0.02959444]
[1726040302850,0.178062,56739.0,56738.0,0.03459444]
[1726040303095,0.000817,56739.0,56738.0,0.01559444]
[1726040303322,0.000817,56739.0,56738.0,0.01959444]
[1726040303544,0.004817,56739.0,56738.0,0.01959444]
[1726040303769,0.000817,56739.0,56738.0,0.01959444]
[1726040304013,0.004817,56739.0,56738.0,0.01559444]
[1726040304210,0.009817,56739.0,56738.0,0.01559444]
[1726040304431,0.186062,56739.0,56738.0,0.01559444]
[1726040304905,0.186062,56739.0,56733.0,0.064]
[1726040304906,0.176248,56738.0,56737.0,0.01559444]
[1726040305155,0.176248,56738.0,56735.0,0.01559444]
[1726040305156,0.555463,56736.0,56735.0,0.01559444]
[1726040306547,0.17626,56735.0,56734.0,0.01559444]
[1726040307688,0.28493232,56735.0,56734.0,0.01559444]
[1726040308173,0.001,56735.0,56734.0,0.01559444]
[1726040308404,0.001,56735.0,56734.0,0.07959444]
[1726040308658,0.001,56735.0,56734.0,0.08311894]
[1726040309156,0.001,56735.0,56734.0,0.26380233]
[1726040309631,0.001,56735.0,56734.0,0.08059444]
[1726040310598,0.001,56735.0,56734.0,0.01659444]
[1726040311836,0.001,56735.0,56734.0,0.08191899]
[1726040312540,0.001,56735.0,56734.0,0.07839444]
[1726040318963,0.001,56735.0,56734.0,0.01659444]
[1726040320322,0.177258,56735.0,56734.0,0.001]
[1726040320576,0.90899,56735.0,56734.0,0.001]
[1726040320809,1.31872049,56735.0,56734.0,0.001]
[1726040321474,0.96620449,56735.0,56734.0,0.001]
[1726040321928,1.57656067,56735.0,56734.0,0.001]
[1726040322144,2.00548223,56735.0,56734.0,0.001]
[1726040322397,2.18466058,56735.0,56734.0,0.001]
[1726040322606,1.75096623,56735.0,56734.0,0.001]
[1726040322821,0.908097,56728.0,56727.0,0.001634]
[1726040323041,1.14125167,56728.0,56727.0,0.001634]
[1726040324385,1.49381067,56728.0,56727.0,0.001634]
[1726040324612,1.57531067,56728.0,56727.0,0.001634]
[1726040325077,1.60731067,56728.0,56727.0,0.001634]
[1726040325263,1.78148022,56728.0,56727.0,0.001634]
[1726040325503,1.79448022,56728.0,56727.0,0.002634]
[1726040325897,1.80448022,56728.0,56727.0,0.003634]
[1726040326150,1.83210391,56728.0,56727.0,0.003634]
[1726040326370,1.83210391,56728.0,56727.0,0.001634]
[1726040326371,1.80910391,56728.0,56727.0,0.001634]
[1726040326577,1.82210391,56728.0,56727.0,0.002634]
[1726040326802,1.83210391,56728.0,56727.0,0.003634]
[1726040327862,1.81910391,56728.0,56727.0,0.002634]
[1726040328081,1.81910391,56728.0,56727.0,0.003634]
[1726040328267,1.83210391,56728.0,56727.0,0.003634]
[1726040328964,1.80448022,56728.0,56727.0,0.003634]
[1726040331509,1.74726573,56728.0,56727.0,0.003634]
[1726040333248,1.57109618,56728.0,56727.0,0.003634]
[1726040333465,1.08033718,56728.0,56727.0,0.003634]
[1726040334738,1.07033718,56728.0,56727.0,0.002634]
[1726040334941,1.05815418,56728.0,56727.0,0.001634]
[1726040335145,1.06715418,56728.0,56727.0,0.002634]
[1726040335362,1.08015418,56728.0,56727.0,0.003634]
[1726040335564,1.05815418,56728.0,56727.0,0.001634]
[1726040335977,1.07815418,56728.0,56727.0,0.003634]
[1726040336394,1.10577595,56728.0,56727.0,0.003634]
[1726040337651,0.40065795,56728.0,56727.0,0.003634]
[1726040338309,0.22471777,56728.0,56727.0,0.003634]
[1726040338937,0.197096,56728.0,56727.0,0.003634]
[1726040339453,0.020817,56728.0,56727.0,0.003634]
[1726040339893,0.197096,56728.0,56727.0,0.003634]
[1726040342288,0.549655,56728.0,56727.0,0.003634]
[1726040342715,0.197096,56728.0,56727.0,0.003634]
[1726040343793,0.902214,56728.0,56727.0,0.003634]
[1726040344236,1.0353606,56728.0,56727.0,0.003634]
[1726040344678,0.6828016,56728.0,56727.0,0.003634]
[1726040345334,0.902214,56728.0,56727.0,0.003634]
[1726040345601,0.92983551,56728.0,56727.0,0.003634]
[1726040345811,0.57727651,56728.0,56727.0,0.003634]
[1726040346238,0.17629,56725.0,56719.0,0.00840444]
[1726040346722,0.176286,56726.0,56720.0,0.00352546]
[1726040347631,0.007,56725.0,56720.0,0.00352546]
[1726040347861,0.008,56725.0,56720.0,0.00352546]
[1726040348323,0.185286,56726.0,56720.0,0.00452546]
[1726040348783,0.352578,56725.0,56720.0,0.002]
[1726040349010,0.009,56726.0,56720.0,0.001]
[1726040349257,0.08755952,56726.0,56720.0,0.001]
[1726040349508,0.176289,56725.0,56720.0,0.001]
[1726040349733,0.176301,56721.0,56720.0,0.001]
[1726040350184,0.176299,56722.0,56720.0,0.001]
[1726040350425,0.176301,56721.0,56720.0,0.001]
[1726040350660,0.176301,56721.0,56720.0,0.002]
[1726040350892,0.01776414,56721.0,56719.0,0.00840444]
[1726040351394,0.19706714,56721.0,56719.0,0.00840444]
[1726040351637,0.02076414,56721.0,56720.0,0.001]
[1726040352082,0.19406514,56721.0,56720.0,0.001]
[1726040352508,0.02076414,56721.0,56720.0,0.001]
[1726040352714,0.02076414,56721.0,56719.0,0.00840444]
[1726040353801,0.01776414,56721.0,56719.0,0.00840444]
[1726040354020,0.02076414,56721.0,56719.0,0.00840444]
[1726040354247,0.05496481,56720.0,56719.0,0.00840444]
[1726040355365,0.11220368,56720.0,56719.0,0.00840444]
[1726040355598,0.11520368,56720.0,56719.0,0.00840444]
[1726040356031,0.06023887,56720.0,56719.0,0.00840444]
[1726040357008,0.06223887,56720.0,56719.0,0.00840444]
[1726040357657,0.05723887,56720.0,56719.0,0.00840444]
[1726040357879,0.05823887,56720.0,56719.0,0.00840444]
[1726040358101,0.05823887,56720.0,56719.0,0.00940444]
[1726040358559,0.05723887,56720.0,56719.0,0.00840444]
[1726040358784,0.05723887,56720.0,56719.0,0.01140444]
[1726040358984,0.05723887,56723.0,56719.0,0.01140444]
[1726040359197,0.05723887,56722.0,56719.0,0.01540444]
[1726040359659,0.05723887,56722.0,56719.0,0.01703844]
[1726040359873,0.000817,56720.0,56719.0,0.01703844]
[1726040360094,0.05805587,56720.0,56719.0,0.01703844]
[1726040360314,0.05805587,56720.0,56719.0,0.01003844]
[1726040361020,0.05805587,56720.0,56719.0,0.01103844]
[1726040361240,0.05805587,56720.0,56719.0,0.01003844]
[1726040361461,0.05805587,56720.0,56719.0,0.01403844]
[1726040361676,0.05805587,56720.0,56719.0,0.01703844]
[1726040367023,0.05805587,56720.0,56719.0,0.01403844]
[1726040367454,0.06105587,56720.0,56719.0,0.01403844]
[1726040367897,0.05805587,56720.0,56719.0,0.01403844]
[1726040368323,0.05805587,56720.0,56719.0,0.01703844]
[1726040370989,0.000817,56720.0,56719.0,0.01703844]
[1726040384300,0.000817,56720.0,56719.0,0.02056378]
[1726040385663,0.000817,56720.0,56719.0,0.01703844]
[1726040385904,0.000817,56720.0,56719.0,0.008634]
[1726040385905,0.064117,56720.0,56719.0,0.008634]
[1726040386185,0.32133632,56720.0,56719.0,0.008634]
[1726040386915,0.32133632,56720.0,56719.0,0.004634]
[1726040387137,0.32133632,56720.0,56719.0,0.002634]
[1726040387378,0.32133632,56720.0,56719.0,0.001634]
[1726040387837,0.32333632,56720.0,56719.0,0.001634]
[1726040388073,0.32233632,56720.0,56719.0,0.001634]
[1726040388316,0.32333632,56720.0,56719.0,0.001634]
[1726040389258,0.32233632,56720.0,56719.0,0.001634]
[1726040389502,0.49864032,56720.0,56719.0,0.001634]
[1726040389719,0.50064032,56720.0,56719.0,0.001634]
[1726040389949,1.20585832,56720.0,56719.0,0.001634]
[1726040390401,1.25879021,56720.0,56719.0,0.001634]
[1726040390615,1.28526387,56720.0,56719.0,0.001634]
[1726040390874,1.28326387,56720.0,56719.0,0.001634]
[1726040391064,1.28226387,56720.0,56719.0,0.001634]
[1726040391286,1.28926387,56720.0,56719.0,0.002634]
[1726040391520,1.29526387,56720.0,56719.0,0.003634]
[1726040391732,1.28926387,56720.0,56719.0,0.002634]
[1726040392180,1.30564339,56720.0,56719.0,0.002634]
[1726040392407,1.22623784,56720.0,56719.0,0.002634]
[1726040392640,1.22623784,56720.0,56719.0,0.001634]
[1726040392641,1.57184684,56720.0,56719.0,0.001634]
[1726040392863,1.58084684,56720.0,56719.0,0.002634]
[1726040393080,1.71672091,56720.0,56719.0,0.002634]
[1726040393504,1.70772091,56720.0,56719.0,0.001634]
[1726040393719,1.72872091,56720.0,56719.0,0.003634]
[1726040393956,1.72072091,56720.0,56719.0,0.002634]
[1726040394174,1.70772091,56720.0,56719.0,0.002634]
[1726040394410,1.69619046,56720.0,56719.0,0.002634]
[1726040394635,1.70919046,56720.0,56719.0,0.003634]
[1726040394858,1.83572091,56720.0,56719.0,0.003634]
[1726040395299,1.78984684,56720.0,56719.0,0.003634]
[1726040396022,2.22325584,56720.0,56719.0,0.003634]
[1726040396234,2.38206695,56720.0,56719.0,0.003634]
[1726040396445,2.4094906,56720.0,56719.0,0.003634]
[1726040396895,2.3964906,56720.0,56719.0,0.002634]
[1726040397106,2.3944906,56720.0,56719.0,0.002634]
[1726040397357,2.24988507,56720.0,56719.0,0.003634]
[1726040398233,2.23888507,56720.0,56719.0,0.002634]
[1726040398450,2.42478507,56720.0,56719.0,0.002634]
[1726040398663,2.22488507,56720.0,56719.0,0.001634]
[1726040398879,2.19725584,56720.0,56719.0,0.001634]
[1726040399869,2.21125584,56720.0,56719.0,0.001634]
[1726040400469,2.22525584,56720.0,56719.0,0.001634]
[1726040402251,2.25288443,56720.0,56719.0,0.001634]
[1726040402700,2.23888443,56720.0,56719.0,0.001634]
[1726040403732,2.3708281,56720.0,56719.0,0.001634]
[1726040404151,2.3848281,56720.0,56719.0,0.001634]
[1726040404649,2.39882205,56720.0,56719.0,0.001634]
[1726040405600,2.37240177,56720.0,56719.0,0.001634]
[1726040406769,2.37946977,56720.0,56719.0,0.001634]
[1726040407646,2.27395243,56720.0,56719.0,0.001634]
[1726040408098,2.62656143,56720.0,56719.0,0.001634]
[1726040408312,2.62656143,56720.0,56716.0,0.0024739]
[1726040408313,1.78729617,56717.0,56716.0,0.0024739]
[1726040408532,0.268326,56713.0,56712.0,0.001634]
[1726040408741,1.22112217,56712.0,56711.0,0.001634]
[1726040408959,2.54127154,56712.0,56711.0,0.001634]
[1726040409169,2.541276,56712.0,56711.0,0.001634]
[1726040409395,2.56890163,56712.0,56711.0,0.001634]
[1726040409604,1.739992,56711.0,56710.0,0.001634]
[1726040409817,2.15226269,56711.0,56710.0,0.001634]
[1726040410060,2.32843224,56711.0,56710.0,0.001634]
[1726040410294,2.24933897,56711.0,56710.0,0.001634]
[1726040410522,2.32841133,56711.0,56710.0,0.001634]
[1726040410742,2.30205372,56711.0,56710.0,0.001634]
[1726040410959,2.42452889,56711.0,56710.0,0.001634]
[1726040411453,2.37181414,56711.0,56710.0,0.001634]
[1726040411638,2.42451484,56711.0,56710.0,0.001634]
[1726040412097,2.38581414,56711.0,56710.0,0.001634]
[1726040414419,2.40160032,56711.0,56710.0,0.001634]
[1726040415974,2.40060032,56711.0,56710.0,0.001634]
[1726040416194,2.40160032,56711.0,56710.0,0.001634]
[1726040418622,2.32075598,56711.0,56710.0,0.001634]
[1726040418837,2.42923115,56711.0,56710.0,0.001634]
[1726040419891,2.40160032,56711.0,56710.0,0.001634]
[1726040423006,2.42923116,56711.0,56710.0,0.001634]
[1726040427833,2.4819236,56711.0,56710.0,0.001634]
[1726040428048,2.37344843,56711.0,56710.0,0.001634]
[1726040428261,2.4819236,56711.0,56710.0,0.001634]
[1726040428474,2.42094512,56711.0,56710.0,0.001634]
[1726040428888,2.36823116,56711.0,56710.0,0.001634]
[1726040429109,2.42094512,56711.0,56710.0,0.001634]
[1726040429615,2.34060032,56711.0,56710.0,0.001634]
[1726040429842,2.48553898,56711.0,56710.0,0.001634]
[1726040430328,2.41357032,56711.0,56710.0,0.001634]
[1726040430567,2.54611843,56711.0,56710.0,0.001634]
[1726040430782,1.326348,56710.0,56702.0,0.0037451]
[1726040431038,0.621015,56709.0,56702.0,0.0037451]
[1726040431267,2.01222342,56709.0,56702.0,0.0037451]
[1726040432648,2.21005571,56709.0,56702.0,0.0037451]
[1726040433102,2.23805571,56709.0,56702.0,0.0037451]
[1726040433331,2.28229297,56709.0,56702.0,0.0037451]
[1726040434030,2.32542147,56709.0,56702.0,0.0037451]
[1726040435013,2.45741515,56709.0,56702.0,0.0037451]
[1726040435523,2.32542147,56709.0,56702.0,0.0037451]
[1726040435935,2.32542147,56709.0,56703.0,0.0617]
[1726040437534,2.25952147,56709.0,56704.0,0.0801739]
[1726040437755,2.25752147,56709.0,56704.0,0.0801739]
[1726040438596,2.44342147,56709.0,56704.0,0.0801739]
[1726040438822,2.25752147,56709.0,56704.0,0.0801739]
[1726040439028,2.25952147,56709.0,56704.0,0.0801739]
[1726040439237,2.25752147,56709.0,56708.0,0.063332]
[1726040439877,1.90684447,56709.0,56708.0,0.063332]
[1726040440115,1.46502814,56709.0,56708.0,0.141032]
[1726040440321,1.44134459,56709.0,56708.0,0.141032]
[1726040440731,1.33286942,56709.0,56708.0,0.141032]
[1726040440938,1.44134459,56709.0,56708.0,0.141032]
[1726040441155,1.70026299,56709.0,56708.0,0.141032]
[1726040441373,1.67382496,56709.0,56708.0,0.141032]
[1726040441576,1.59451113,56709.0,56708.0,0.141032]
[1726040442023,1.67383816,56709.0,56708.0,0.141032]
[1726040442919,1.59451113,56709.0,56708.0,0.141032]
[1726040443602,1.72672284,56709.0,56708.0,0.141032]
[1726040444329,1.59451113,56709.0,56708.0,0.141032]
[1726040444568,1.70030135,56709.0,56708.0,0.141032]
[1726040444809,1.62214098,56709.0,56708.0,0.141032]
[1726040445073,1.7279312,56709.0,56708.0,0.141032]
[1726040445338,1.66793361,56709.0,56708.0,0.141032]
[1726040445580,0.28880727,56709.0,56708.0,0.141032]
[1726040445824,0.26117742,56709.0,56708.0,0.141032]
[1726040446074,0.28880472,56709.0,56708.0,0.141032]
[1726040446541,0.27480472,56709.0,56708.0,0.141032]
[1726040447009,0.28780472,56709.0,56708.0,0.141032]
[1726040447471,0.11186454,56709.0,56708.0,0.24950717]
[1726040447704,0.000817,56711.0,56709.0,0.1375]
[1726040447943,0.000817,56711.0,56710.0,0.14102603]
[1726040449614,0.000817,56711.0,56710.0,0.14302603]
[1726040449828,0.002817,56711.0,56710.0,0.14502603]
[1726040462784,0.002817,56711.0,56710.0,0.32584917]
[1726040463934,0.002817,56711.0,56710.0,0.14502594]
[1726040470313,0.002817,56711.0,56710.0,0.25350654]
[1726040471436,0.002817,56711.0,56710.0,0.2499806]
[1726040471657,0.002817,56711.0,56710.0,0.1415]
[1726040476720,0.002817,56711.0,56710.0,0.14502602]
[1726040491647,0.002817,56711.0,56710.0,0.1975598]
[1726040492748,0.002817,56711.0,56710.0,0.14502602]
[1726040493214,0.002817,56711.0,56710.0,0.19761921]
[1726040493427,0.002817,56711.0,56710.0,0.22382669]
[1726040493648,0.002817,56711.0,56710.0,0.51084201]
[1726040494103,0.002817,56711.0,56710.0,0.43404134]
[1726040495217,0.002817,56711.0,56710.0,0.51291548]
[1726040495431,0.002817,56711.0,56710.0,0.51091548]
[1726040496924,0.002817,56711.0,56710.0,0.43404134]
[1726040497134,0.002817,56711.0,56710.0,0.51275679]
[1726040497820,0.002817,56711.0,56710.0,0.50723077]
[1726040498065,0.002817,56711.0,56710.0,0.30256561]
[1726040498967,0.002817,56711.0,56710.0,0.2499806]